[Event "SELL Games"]
[Site "Tartu, Estonia"]
[Date "2023.05.20"]
[Round "6.2"]
[White "Sirp, Karl Aleksander"]
[Black "Vardanyan, Aras"]
[Result "0-1"]
[TimeControl "15min + 10sec per move each"]
[BlackTitle "FM"]
[WhiteFideId "4504712"]
[BlackFideId "12808792"]
[WhiteElo "2033"]
[BlackElo "2255"]

1. d4 {[%clk 00:15:17]} {[%emt 00:00:03]} Nf6 {[%clk 00:15:19]} {[%emt
00:00:02]} 2. c4 {[%clk 00:15:25]} {[%emt 00:00:02]} c5 {[%clk 00:15:20]}
{[%emt 00:00:09]} 3. e3 {[%clk 00:14:44]} {[%emt 00:00:50]} cxd4 {[%clk
00:15:33]} {[%emt 00:00:06]} 4. exd4 {[%clk 00:14:59]} {[%emt 00:00:06]} d5
{[%clk 00:15:42]} {[%emt 00:00:01]} 5. Nc3 {[%clk 00:14:39]} {[%emt 00:00:30]}
Nc6 {[%clk 00:15:51]} {[%emt 00:00:02]} 6. Be3 {[%clk 00:13:53]} {[%emt
00:00:56]} g6 {[%clk 00:15:47]} {[%emt 00:00:14]} 7. Nf3 {[%clk 00:13:31]}
{[%emt 00:00:32]} Bg7 {[%clk 00:15:56]} {[%emt 00:00:01]} 8. c5 {[%clk
00:13:16]} {[%emt 00:00:25]} O-O {[%clk 00:16:00]} {[%emt 00:00:05]} 9. Be2
{[%clk 00:13:17]} {[%emt 00:00:10]} Ne4 {[%clk 00:16:07]} {[%emt 00:00:04]} 10.
O-O {[%clk 00:13:04]} {[%emt 00:00:22]} b6 {[%clk 00:16:11]} {[%emt 00:00:06]}
11. Qa4 {[%clk 00:12:06]} {[%emt 00:01:08]} Nxc3 {[%clk 00:16:03]} {[%emt
00:00:19]} 12. bxc3 {[%clk 00:12:12]} {[%emt 00:00:04]} Bd7 {[%clk 00:15:57]}
{[%emt 00:00:15]} 13. Bb5 {[%clk 00:11:18]} {[%emt 00:01:04]} Qc7 {[%clk
00:16:05]} {[%emt 00:00:03]} 14. cxb6 {[%clk 00:09:52]} {[%emt 00:01:36]} axb6
{[%clk 00:16:10]} {[%emt 00:00:06]} 15. Qb3 {[%clk 00:10:01]} e6 {[%clk
00:15:49]} {[%emt 00:00:30]} 16. g3 {[%clk 00:09:49]} {[%emt 00:00:22]} Na5
{[%clk 00:15:53]} {[%emt 00:00:06]} 17. Qb4 {[%clk 00:09:55]} {[%emt 00:00:04]}
Bxb5 {[%clk 00:15:38]} {[%emt 00:00:26]} 18. Qxb5 {[%clk 00:10:04]} {[%emt
00:00:01]} Qxc3 {[%clk 00:15:38]} {[%emt 00:00:10]} 19. Rfc1 {[%clk 00:08:45]}
{[%emt 00:01:29]} Qa3 {[%clk 00:15:44]} {[%emt 00:00:03]} 20. Rc7 {[%clk
00:08:15]} {[%emt 00:00:39]} Nc4 {[%clk 00:15:42]} {[%emt 00:00:12]} 21. Re1
{[%clk 00:07:19]} {[%emt 00:01:07]} Qxa2 {[%clk 00:15:20]} {[%emt 00:00:32]} 22.
Ng5 {[%clk 00:06:35]} {[%emt 00:00:53]} Ra7 {[%clk 00:15:22]} {[%emt 00:00:09]}
23. Rc6 {[%clk 00:04:21]} {[%emt 00:02:23]} Qa4 {[%clk 00:14:20]} {[%emt
00:01:12]} 24. Qxa4 {[%clk 00:04:04]} {[%emt 00:00:28]} Rxa4 {[%clk 00:14:29]}
{[%emt 00:00:02]} 25. Rc7 {[%clk 00:03:55]} {[%emt 00:00:19]} Ra3 {[%clk
00:14:10]} {[%emt 00:00:29]} 26. Kg2 {[%clk 00:03:26]} {[%emt 00:00:39]} h6
{[%clk 00:14:15]} {[%emt 00:00:05]} 27. Nf3 {[%clk 00:03:23]} {[%emt 00:00:13]}
Rb8 {[%clk 00:14:24]} {[%emt 00:00:02]} 28. Bf4 {[%clk 00:03:23]} {[%emt
00:00:09]} Rba8 {[%clk 00:14:31]} {[%emt 00:00:03]} 29. Ne5 {[%clk 00:02:10]}
{[%emt 00:01:23]} Nxe5 {[%clk 00:14:18]} {[%emt 00:00:23]} 30. dxe5 {[%clk
00:02:17]} {[%emt 00:00:03]} Rb8 {[%clk 00:13:59]} {[%emt 00:00:29]} 31. h4
{[%clk 00:02:20]} {[%emt 00:00:07]} b5 {[%clk 00:14:04]} {[%emt 00:00:06]} 32.
Rb1 {[%clk 00:02:22]} {[%emt 00:00:07]} b4 {[%clk 00:14:07]} {[%emt 00:00:08]}
33. Rc2 {[%clk 00:01:45]} {[%emt 00:00:46]} b3 {[%clk 00:14:10]} {[%emt
00:00:07]} 34. Rc3 {[%clk 00:01:48]} {[%emt 00:00:07]} g5 {[%clk 00:14:06]}
{[%emt 00:00:14]} 35. hxg5 {[%clk 00:01:35]} {[%emt 00:00:24]} hxg5 {[%clk
00:14:15]} {[%emt 00:00:01]} 36. Bc1 {[%clk 00:01:38]} {[%emt 00:00:07]} Ra2
{[%clk 00:14:05]} {[%emt 00:00:20]} 37. Rcxb3 {[%clk 00:01:34]} {[%emt
00:00:14]} Rxb3 {[%clk 00:14:13]} {[%emt 00:00:02]} 38. Rxb3 {[%clk 00:01:44]}
Bxe5 {[%clk 00:14:04]} {[%emt 00:00:18]} 39. Bxg5 {[%clk 00:01:53]} {[%emt
00:00:01]} Bd4 {[%clk 00:14:09]} {[%emt 00:00:05]} 40. Be3 {[%clk 00:01:52]}
{[%emt 00:00:10]} Bf6 {[%clk 00:14:11]} {[%emt 00:00:08]} 41. Kf3 {[%clk
00:01:23]} {[%emt 00:00:39]} Kg7 {[%clk 00:14:19]} {[%emt 00:00:02]} 42. Rb7
{[%clk 00:01:01]} {[%emt 00:00:31]} Kg6 {[%clk 00:14:28]} {[%emt 00:00:03]} 43.
Rd7 {[%clk 00:00:46]} {[%emt 00:00:25]} Ra4 {[%clk 00:14:25]} {[%emt 00:00:13]}
44. Ke2 {[%clk 00:00:42]} {[%emt 00:00:14]} d4 {[%clk 00:14:26]} {[%emt
00:00:08]} 45. Bd2 {[%clk 00:00:43]} {[%emt 00:00:09]} Ra3 {[%clk 00:14:32]}
{[%emt 00:00:04]} 46. f3 {[%clk 00:00:43]} {[%emt 00:00:11]} e5 {[%clk
00:14:24]} {[%emt 00:00:18]} 47. g4 {[%clk 00:00:43]} {[%emt 00:00:10]} Bg7
{[%clk 00:14:17]} {[%emt 00:00:18]} 48. Rd6+ {[%clk 00:00:45]} {[%emt
00:00:08]} f6 {[%clk 00:14:10]} {[%emt 00:00:17]} 49. f4 {[%clk 00:00:29]}
{[%emt 00:00:27]} Bf8 {[%clk 00:13:44]} {[%emt 00:00:36]} 50. Rd8 {[%clk
00:00:24]} {[%emt 00:00:15]} Bc5 {[%clk 00:13:50]} {[%emt 00:00:03]} 51. Rd5
{[%clk 00:00:23]} {[%emt 00:00:11]} Ba7 {[%clk 00:13:54]} {[%emt 00:00:06]} 52.
fxe5 {[%clk 00:00:27]} {[%emt 00:00:06]} fxe5 {[%clk 00:14:03]} 53. Rxe5 {[%clk
00:00:31]} {[%emt 00:00:05]} d3+ {[%clk 00:14:12]} {[%emt 00:00:01]} 54. Kf3
{[%clk 00:00:26]} {[%emt 00:00:15]} Ra2 {[%clk 00:14:21]} {[%emt 00:00:01]} 55.
Bf4 {[%emt 00:00:27]} Rf2+ {[%clk 00:12:55]} {[%emt 00:01:34]} 56. Kg3 {[%clk
00:00:20]} {[%emt 00:00:01]} Rf1 {[%clk 00:12:36]} {[%emt 00:00:29]} 57. Re6+
{[%clk 00:00:18]} {[%emt 00:00:11]} Kf7 {[%clk 00:12:40]} {[%emt 00:00:07]} 58.
Rd6 {[%clk 00:00:13]} {[%emt 00:00:15]} Bb8 {[%clk 00:12:42]} {[%emt 00:00:08]}
59. Rd7+ {[%clk 00:00:12]} {[%emt 00:00:11]} Ke6 {[%clk 00:12:37]} {[%emt
00:00:14]} 60. Rxd3 {[%clk 00:00:17]} {[%emt 00:00:06]} Rxf4 {[%clk 00:12:39]}
{[%emt 00:00:08]} 61. Kh3 {[%clk 00:00:13]} {[%emt 00:00:13]} Rf2 {[%clk
00:12:42]} {[%emt 00:00:07]} 62. g5 {[%clk 00:00:12]} {[%emt 00:00:11]} Kf5
{[%clk 00:12:50]} {[%emt 00:00:02]} 63. Rd5+ {[%clk 00:00:21]} {[%emt
00:00:01]} Be5 {[%clk 00:12:59]} {[%emt 00:00:01]} 0-1

[Event "SELL Games"]
[Site "Tartu, Estonia"]
[Date "2023.05.20"]
[Round "6.3"]
[White "Tvarijonas, Tomas"]
[Black "Laurusas, Tomas"]
[Result "0-1"]
[TimeControl "15min + 10sec per move each"]
[WhiteTitle "FM"]
[BlackTitle "GM"]
[WhiteFideId "12805432"]
[BlackFideId "12803731"]
[WhiteElo "2181"]
[BlackElo "2504"]

1. e4 {[%clk 00:15:18]} {[%emt 00:00:01]} c5 {[%clk 00:15:16]} {[%emt
00:00:04]} 2. Nf3 {[%clk 00:15:26]} {[%emt 00:00:03]} e6 {[%clk 00:15:24]}
{[%emt 00:00:01]} 3. d4 {[%clk 00:15:35]} {[%emt 00:00:01]} cxd4 {[%clk
00:15:33]} {[%emt 00:00:02]} 4. Nxd4 {[%clk 00:15:44]} {[%emt 00:00:01]} a6
{[%clk 00:15:42]} {[%emt 00:00:01]} 5. Bd3 {[%clk 00:15:45]} {[%emt 00:00:08]}
Ne7 {[%clk 00:15:47]} {[%emt 00:00:06]} 6. O-O {[%clk 00:15:44]} {[%emt
00:00:11]} Nec6 {[%clk 00:15:54]} {[%emt 00:00:03]} 7. Nf3 {[%clk 00:15:23]}
{[%emt 00:00:31]} d6 {[%clk 00:15:46]} {[%emt 00:00:18]} 8. c4 {[%clk
00:15:17]} {[%emt 00:00:16]} Nd7 {[%clk 00:15:48]} {[%emt 00:00:07]} 9. Be3
{[%clk 00:15:13]} {[%emt 00:00:14]} Be7 {[%clk 00:15:56]} {[%emt 00:00:02]} 10.
Nc3 {[%clk 00:15:10]} {[%emt 00:00:13]} O-O {[%clk 00:16:01]} {[%emt 00:00:05]}
11. Rc1 {[%clk 00:15:07]} {[%emt 00:00:14]} b6 {[%clk 00:15:43]} {[%emt
00:00:28]} 12. Nd4 {[%clk 00:14:42]} {[%emt 00:00:35]} Bb7 {[%clk 00:15:34]}
{[%emt 00:00:19]} 13. Nxc6 {[%clk 00:14:31]} {[%emt 00:00:21]} Bxc6 {[%clk
00:15:42]} {[%emt 00:00:01]} 14. f4 {[%clk 00:13:43]} {[%emt 00:00:58]} Qb8
{[%clk 00:15:26]} {[%emt 00:00:25]} 15. Qe2 {[%clk 00:13:05]} {[%emt 00:00:49]}
Re8 {[%clk 00:14:54]} {[%emt 00:00:41]} 16. Bd4 {[%clk 00:12:26]} {[%emt
00:00:49]} Bf8 {[%clk 00:14:36]} {[%emt 00:00:28]} 17. Bb1 {[%clk 00:11:27]}
{[%emt 00:01:10]} b5 {[%clk 00:14:25]} {[%emt 00:00:21]} 18. cxb5 {[%clk
00:10:36]} {[%emt 00:01:00]} axb5 {[%clk 00:14:32]} {[%emt 00:00:02]} 19. a3
{[%clk 00:08:58]} {[%emt 00:01:49]} b4 {[%clk 00:14:27]} {[%emt 00:00:15]} 20.
axb4 {[%clk 00:08:07]} {[%emt 00:01:01]} Qxb4 {[%clk 00:14:34]} {[%emt
00:00:02]} 21. Qf2 {[%clk 00:07:33]} {[%emt 00:00:44]} Rab8 {[%clk 00:13:34]}
{[%emt 00:01:10]} 22. Ne2 {[%clk 00:06:52]} {[%emt 00:00:51]} Rec8 {[%clk
00:12:41]} {[%emt 00:01:03]} 23. Bc3 {[%clk 00:06:55]} {[%emt 00:00:08]} Qb7
{[%clk 00:12:47]} {[%emt 00:00:03]} 24. Ng3 {[%clk 00:06:55]} {[%emt 00:00:11]}
Nc5 {[%clk 00:12:28]} {[%emt 00:00:29]} 25. Rce1 {[%clk 00:05:33]} {[%emt
00:01:32]} Na4 {[%clk 00:12:32]} {[%emt 00:00:06]} 26. Bd4 {[%clk 00:05:27]}
{[%emt 00:00:17]} Bb5 {[%clk 00:12:08]} {[%emt 00:00:34]} 27. Nh5 {[%clk
00:04:54]} {[%emt 00:00:43]} e5 {[%clk 00:11:25]} {[%emt 00:00:54]} 28. fxe5
{[%clk 00:04:09]} {[%emt 00:00:55]} dxe5 {[%clk 00:11:33]} {[%emt 00:00:02]} 29.
Bxe5 {[%clk 00:04:02]} {[%emt 00:00:18]} Bc5 {[%clk 00:11:41]} {[%emt
00:00:01]} 30. Bd4 {[%clk 00:04:08]} {[%emt 00:00:03]} Bxf1 {[%clk 00:11:50]}
{[%emt 00:00:02]} 31. Bxc5 {[%clk 00:03:18]} {[%emt 00:01:01]} Rxc5 {[%clk
00:11:53]} {[%emt 00:00:06]} 32. e5 {[%clk 00:02:09]} {[%emt 00:01:18]} Qxg2+
{[%clk 00:10:19]} {[%emt 00:01:45]} 33. Qxg2 {[%clk 00:02:18]} {[%emt
00:00:01]} Bxg2 {[%clk 00:10:27]} {[%emt 00:00:01]} 34. Kxg2 {[%clk 00:02:24]}
{[%emt 00:00:04]} Re8 {[%clk 00:10:15]} {[%emt 00:00:22]} 35. b3 {[%clk
00:01:37]} {[%emt 00:00:57]} Nc3 {[%clk 00:09:52]} {[%emt 00:00:33]} 36. Bd3
{[%clk 00:01:25]} {[%emt 00:00:22]} Rcxe5 {[%clk 00:09:51]} {[%emt 00:00:11]}
0-1

[Event "SELL Games"]
[Site "Tartu, Estonia"]
[Date "2023.05.20"]
[Round "6.4"]
[White "Bekasovs, Rihards"]
[Black "Simkunaite, Gabija"]
[Result "0-1"]
[TimeControl "15min + 10sec per move each"]
[BlackTitle "WFM"]
[WhiteFideId "11606029"]
[BlackFideId "12808253"]
[WhiteElo "2107"]
[BlackElo "1964"]

1. d4 {[%clk 00:15:19]} d5 {[%clk 00:15:14]} {[%emt 00:00:06]} 2. c4 {[%clk
00:15:22]} {[%emt 00:00:07]} e6 {[%clk 00:15:22]} {[%emt 00:00:02]} 3. Nf3
{[%clk 00:15:30]} {[%emt 00:00:02]} Nf6 {[%clk 00:15:30]} {[%emt 00:00:02]} 4.
g3 {[%clk 00:15:35]} {[%emt 00:00:05]} Be7 {[%clk 00:15:16]} {[%emt 00:00:23]}
5. Bg2 {[%clk 00:15:43]} {[%emt 00:00:02]} O-O {[%clk 00:15:16]} {[%emt
00:00:09]} 6. Qc2 {[%clk 00:15:33]} {[%emt 00:00:21]} Nbd7 {[%clk 00:14:34]}
{[%emt 00:00:52]} 7. O-O {[%clk 00:14:28]} {[%emt 00:01:15]} b6 {[%clk
00:13:08]} {[%emt 00:01:36]} 8. cxd5 {[%clk 00:13:20]} {[%emt 00:01:17]} exd5
{[%clk 00:12:41]} {[%emt 00:00:37]} 9. Bf4 {[%clk 00:12:21]} {[%emt 00:01:08]}
c5 {[%clk 00:12:10]} {[%emt 00:00:42]} 10. Nc3 {[%clk 00:11:39]} {[%emt
00:00:53]} Bb7 {[%clk 00:11:58]} {[%emt 00:00:22]} 11. Rfd1 {[%clk 00:11:03]}
{[%emt 00:00:46]} Rc8 {[%clk 00:11:32]} {[%emt 00:00:37]} 12. Rac1 {[%clk
00:10:45]} {[%emt 00:00:29]} Re8 {[%clk 00:10:27]} {[%emt 00:01:14]} 13. Bg5
{[%clk 00:09:29]} {[%emt 00:01:26]} Ne4 {[%clk 00:08:22]} {[%emt 00:02:15]} 14.
Bxe7 {[%clk 00:09:01]} {[%emt 00:00:39]} Qxe7 {[%clk 00:08:29]} {[%emt
00:00:01]} 15. Qa4 {[%clk 00:05:02]} {[%emt 00:04:09]} Bc6 {[%clk 00:03:57]}
{[%emt 00:04:43]} 16. Qxa7 {[%clk 00:03:29]} {[%emt 00:01:44]} Ra8 {[%clk
00:03:54]} {[%emt 00:00:12]} 17. Qc7 {[%clk 00:03:26]} {[%emt 00:00:13]} Rec8
{[%clk 00:04:03]} 18. Qf4 {[%clk 00:03:34]} {[%emt 00:00:02]} Nxc3 {[%clk
00:04:11]} {[%emt 00:00:02]} 19. bxc3 {[%clk 00:03:08]} {[%emt 00:00:37]} Rxa2
{[%clk 00:04:16]} {[%emt 00:00:05]} 20. e3 {[%clk 00:02:46]} {[%emt 00:00:31]}
Nf6 {[%clk 00:03:40]} {[%emt 00:00:46]} 21. Ne5 {[%clk 00:02:06]} {[%emt
00:00:50]} Ba4 {[%clk 00:02:54]} {[%emt 00:00:56]} 22. Ra1 {[%clk 00:01:11]}
{[%emt 00:01:06]} Bxd1 {[%clk 00:02:45]} {[%emt 00:00:18]} 23. Rxa2 {[%clk
00:01:20]} {[%emt 00:00:01]} h6 {[%clk 00:02:39]} {[%emt 00:00:15]} 24. Ra1
{[%clk 00:00:55]} {[%emt 00:00:35]} Bc2 {[%clk 00:02:46]} {[%emt 00:00:03]} 25.
h4 {[%clk 00:00:43]} {[%emt 00:00:22]} Be4 {[%clk 00:01:13]} {[%emt 00:01:43]}
26. Bh3 {[%clk 00:00:22]} {[%emt 00:00:31]} Re8 {[%clk 00:01:22]} 27. Nc6
{[%clk 00:00:12]} {[%emt 00:00:20]} Qb7 {[%clk 00:01:13]} {[%emt 00:00:18]} 28.
Ne5 {[%clk 00:00:15]} {[%emt 00:00:08]} Qc7 {[%clk 00:01:10]} {[%emt 00:00:13]}
29. Bg2 {[%clk 00:00:13]} {[%emt 00:00:12]} cxd4 {[%clk 00:01:12]} {[%emt
00:00:08]} 30. cxd4 {[%clk 00:00:18]} {[%emt 00:00:05]} Bxg2 {[%clk 00:01:07]}
{[%emt 00:00:16]} 31. Kxg2 {[%clk 00:00:25]} {[%emt 00:00:03]} b5 {[%clk
00:01:12]} {[%emt 00:00:04]} 32. Rb1 {[%clk 00:00:17]} {[%emt 00:00:19]} Rb8
{[%clk 00:00:55]} {[%emt 00:00:27]} 33. Qf5 {[%clk 00:00:13]} {[%emt 00:00:14]}
b4 {[%clk 00:00:45]} {[%emt 00:00:19]} 34. Qd3 {[%clk 00:00:12]} {[%emt
00:00:12]} Ne4 {[%clk 00:00:50]} {[%emt 00:00:05]} 35. Rb2 {[%clk 00:00:12]}
{[%emt 00:00:10]} Qc1 {[%clk 00:00:36]} {[%emt 00:00:23]} 36. Rb1 {[%clk
00:00:12]} {[%emt 00:00:10]} Qc7 {[%clk 00:00:43]} {[%emt 00:00:02]} 37. Rb2
{[%clk 00:00:12]} {[%emt 00:00:11]} Nd6 {[%clk 00:00:41]} {[%emt 00:00:12]} 38.
Rc2 {[%clk 00:00:15]} {[%emt 00:00:08]} Qb7 {[%clk 00:00:42]} {[%emt 00:00:08]}
39. Qb3 {[%clk 00:00:19]} {[%emt 00:00:06]} Nc4 {[%clk 00:00:44]} {[%emt
00:00:09]} 40. Nd3 {[%clk 00:00:23]} {[%emt 00:00:05]} Na5 {[%clk 00:00:45]}
{[%emt 00:00:09]} 41. Qa4 {[%clk 00:00:15]} {[%emt 00:00:19]} b3 {[%clk
00:00:49]} {[%emt 00:00:05]} 42. Rd2 {[%clk 00:00:11]} {[%emt 00:00:14]} Nc4
{[%clk 00:00:55]} {[%emt 00:00:04]} 43. Rd1 {[%clk 00:00:15]} {[%emt 00:00:06]}
Qe7 {[%clk 00:01:01]} {[%emt 00:00:04]} 44. Kg1 {[%clk 00:00:15]} {[%emt
00:00:10]} b2 {[%clk 00:00:58]} {[%emt 00:00:13]} 45. Rb1 {[%clk 00:00:13]}
{[%emt 00:00:12]} Qe4 {[%clk 00:00:59]} {[%emt 00:00:08]} 46. Qd1 {[%clk
00:00:13]} {[%emt 00:00:10]} Rb5 {[%clk 00:00:33]} {[%emt 00:00:37]} 47. Kh2
{[%clk 00:00:11]} {[%emt 00:00:12]} Qf5 {[%clk 00:00:34]} {[%emt 00:00:07]} 48.
Kg2 {[%clk 00:00:15]} {[%emt 00:00:07]} Qe4+ {[%clk 00:00:26]} {[%emt
00:00:18]} 49. Kh2 {[%clk 00:00:25]} {[%emt 00:00:01]} Rb8 {[%clk 00:00:34]}
{[%emt 00:00:02]} 50. Kg1 {[%clk 00:00:12]} {[%emt 00:00:22]} Qf5 {[%clk
00:00:42]} {[%emt 00:00:02]} 51. Kg2 {[%clk 00:00:17]} {[%emt 00:00:05]} Qe6
{[%clk 00:00:41]} {[%emt 00:00:09]} 52. Kh2 {[%clk 00:00:13]} {[%emt 00:00:16]}
Qf6 {[%clk 00:00:41]} {[%emt 00:00:09]} 53. Kg2 {[%clk 00:00:22]} {[%emt
00:00:01]} Qf5 {[%clk 00:00:45]} {[%emt 00:00:06]} 54. Kg1 {[%clk 00:00:12]}
{[%emt 00:00:20]} Rb6 {[%clk 00:00:49]} {[%emt 00:00:06]} 55. Kg2 {[%clk
00:00:16]} {[%emt 00:00:05]} Rf6 {[%clk 00:00:27]} {[%emt 00:00:32]} 56. Qe2
{[%clk 00:00:14]} {[%emt 00:00:12]} Qe4+ {[%clk 00:00:27]} {[%emt 00:00:09]} 57.
Kg1 {[%clk 00:00:16]} {[%emt 00:00:08]} Rb6 {[%clk 00:00:36]} {[%emt 00:00:02]}
58. Qd1 {[%clk 00:00:12]} {[%emt 00:00:14]} g6 {[%clk 00:00:41]} {[%emt
00:00:05]} 59. Kh2 {[%clk 00:00:13]} {[%emt 00:00:09]} h5 {[%clk 00:00:37]}
{[%emt 00:00:14]} 60. Kg1 {[%clk 00:00:21]} {[%emt 00:00:02]} Kg7 {[%clk
00:00:41]} {[%emt 00:00:05]} 61. Kh2 {[%clk 00:00:14]} {[%emt 00:00:17]} Kh7
{[%clk 00:00:50]} 62. Kg1 {[%clk 00:00:22]} {[%emt 00:00:02]} Qe6 {[%clk
00:00:36]} {[%emt 00:00:23]} 63. Qe2 {[%clk 00:00:15]} {[%emt 00:00:17]} Qf5
{[%clk 00:00:26]} {[%emt 00:00:21]} 64. Kg2 {[%clk 00:00:11]} {[%emt 00:03:06]}
Rb3 {[%clk 00:00:32]} 65. Rxb2 Rxd3 {[%clk 00:00:26]} 66. Ra2 {[%clk 00:00:15]}
Rb3 {[%clk 00:00:29]} 67. Rc2 {[%clk 00:00:14]} Qe4+ {[%clk 00:00:34]} 68. Kh2
{[%clk 00:00:12]} Rb1 {[%clk 00:00:42]} 0-1

[Event "SELL Games"]
[Site "Tartu, Estonia"]
[Date "2023.05.20"]
[Round "6.5"]
[White "Vaskevicius, Augustas"]
[Black "Sibajeva, Marija"]
[Result "1/2-1/2"]
[TimeControl "15min + 10sec per move each"]
[BlackTitle "WFM"]
[WhiteFideId "12808008"]
[BlackFideId "12807583"]
[WhiteElo "1904"]
[BlackElo "1953"]

1. d4 {[%clk 00:15:17]} {[%emt 00:00:01]} d5 {[%clk 00:15:18]} {[%emt
00:00:02]} 2. c4 {[%clk 00:15:25]} {[%emt 00:00:02]} dxc4 {[%clk 00:15:27]}
{[%emt 00:00:02]} 3. Nf3 {[%clk 00:15:30]} {[%emt 00:00:05]} a6 {[%clk
00:15:36]} {[%emt 00:00:02]} 4. e3 {[%clk 00:15:35]} {[%emt 00:00:05]} Nf6
{[%clk 00:15:25]} {[%emt 00:00:21]} 5. Bxc4 {[%clk 00:15:38]} {[%emt 00:00:06]}
e6 {[%clk 00:15:34]} {[%emt 00:00:02]} 6. O-O {[%clk 00:15:42]} {[%emt
00:00:06]} c5 {[%clk 00:15:01]} {[%emt 00:00:43]} 7. b3 {[%clk 00:15:35]}
{[%emt 00:00:17]} Nbd7 {[%clk 00:14:33]} {[%emt 00:00:39]} 8. Bb2 {[%clk
00:15:36]} {[%emt 00:00:09]} b5 {[%clk 00:14:27]} {[%emt 00:00:15]} 9. Be2
{[%clk 00:15:38]} {[%emt 00:00:08]} Bb7 {[%clk 00:14:36]} {[%emt 00:00:01]} 10.
a4 {[%clk 00:15:37]} {[%emt 00:00:11]} b4 {[%clk 00:14:04]} {[%emt 00:00:41]}
11. Nbd2 {[%clk 00:15:39]} {[%emt 00:00:09]} Bd6 {[%clk 00:14:00]} {[%emt
00:00:12]} 12. Nc4 {[%clk 00:15:09]} {[%emt 00:00:42]} Bc7 {[%clk 00:14:07]}
{[%emt 00:00:02]} 13. Rc1 {[%clk 00:14:16]} {[%emt 00:01:04]} Qb8 {[%clk
00:13:12]} {[%emt 00:01:05]} 14. h3 {[%clk 00:12:51]} {[%emt 00:01:35]} cxd4
{[%clk 00:12:38]} {[%emt 00:00:45]} 15. Nxd4 {[%clk 00:11:50]} {[%emt
00:01:11]} O-O {[%clk 00:12:07]} {[%emt 00:00:41]} 16. Bf3 {[%clk 00:11:40]}
{[%emt 00:00:20]} Rd8 {[%clk 00:10:34]} {[%emt 00:01:43]} 17. Qe2 {[%clk
00:10:19]} {[%emt 00:01:32]} Ne4 {[%clk 00:08:38]} {[%emt 00:02:05]} 18. Rfd1
{[%clk 00:09:39]} {[%emt 00:00:51]} Ndc5 {[%clk 00:07:09]} {[%emt 00:01:38]} 19.
Qc2 {[%clk 00:04:25]} {[%emt 00:05:24]} Bd5 {[%clk 00:04:39]} {[%emt 00:02:40]}
20. Nd2 {[%clk 00:03:51]} {[%emt 00:00:44]} Nxd2 {[%clk 00:03:56]} {[%emt
00:00:54]} 21. Rxd2 {[%clk 00:03:03]} {[%emt 00:00:58]} Bxf3 {[%clk 00:03:35]}
{[%emt 00:00:31]} 22. Nxf3 {[%clk 00:03:06]} {[%emt 00:00:07]} Bb6 {[%clk
00:01:55]} {[%emt 00:01:50]} 23. Bd4 {[%clk 00:02:48]} {[%emt 00:00:28]} Rc8
{[%clk 00:01:37]} {[%emt 00:00:28]} 24. Qb2 {[%clk 00:02:40]} {[%emt 00:00:18]}
Ne4 {[%clk 00:01:07]} {[%emt 00:00:40]} 25. Rxc8+ {[%clk 00:02:23]} {[%emt
00:00:26]} Qxc8 {[%clk 00:01:16]} {[%emt 00:00:01]} 26. Rc2 {[%clk 00:02:30]}
{[%emt 00:00:04]} Qd8 {[%clk 00:01:05]} {[%emt 00:00:19]} 27. Bxg7 {[%clk
00:01:24]} {[%emt 00:01:17]} f6 {[%clk 00:01:12]} {[%emt 00:00:03]} 28. Rc4
{[%clk 00:01:22]} {[%emt 00:00:12]} Qd1+ {[%clk 00:00:28]} {[%emt 00:00:53]} 29.
Kh2 {[%clk 00:01:27]} {[%emt 00:00:04]} Qd6+ {[%clk 00:00:30]} {[%emt
00:00:08]} 30. g3 {[%clk 00:01:21]} {[%emt 00:00:17]} f5 {[%clk 00:00:32]}
{[%emt 00:00:07]} 31. Bh6 {[%clk 00:01:02]} {[%emt 00:00:30]} Qe7 {[%clk
00:00:32]} {[%emt 00:00:09]} 32. Rc6 {[%clk 00:00:57]} {[%emt 00:00:16]} Bc7
{[%clk 00:00:20]} {[%emt 00:00:22]} 33. Nd4 {[%clk 00:00:43]} {[%emt 00:00:24]}
Nc3 {[%clk 00:00:18]} {[%emt 00:00:12]} 34. Rxe6 {[%clk 00:00:44]} {[%emt
00:00:09]} Qf7 {[%clk 00:00:24]} {[%emt 00:00:03]} 35. Qc2 {[%clk 00:00:48]}
{[%emt 00:00:06]} Re8 {[%clk 00:00:23]} {[%emt 00:00:11]} 36. Rxe8+ {[%clk
00:00:52]} {[%emt 00:00:06]} Qxe8 {[%clk 00:00:32]} {[%emt 00:00:01]} 37. Qxf5
{[%clk 00:01:01]} {[%emt 00:00:02]} Qe7 {[%clk 00:00:21]} {[%emt 00:00:19]} 38.
Ne6 {[%clk 00:00:40]} {[%emt 00:00:32]} Bd6 {[%clk 00:00:16]} {[%emt 00:00:15]}
39. Qg4+ {[%clk 00:00:34]} {[%emt 00:00:17]} Kf7 {[%clk 00:00:16]} {[%emt
00:00:09]} 40. Nd4 {[%clk 00:00:33]} {[%emt 00:00:12]} Qf6 {[%clk 00:00:17]}
{[%emt 00:00:09]} 41. Bg5 {[%clk 00:00:40]} {[%emt 00:00:03]} Qxf2+ {[%clk
00:00:24]} {[%emt 00:00:03]} 42. Kh1 {[%clk 00:00:46]} {[%emt 00:00:03]} Qf1+
{[%clk 00:00:28]} {[%emt 00:00:05]} 43. Kh2 {[%clk 00:00:55]} {[%emt 00:00:02]}
Qf2+ {[%clk 00:00:37]} {[%emt 00:00:02]} 1/2-1/2